fUST/lending_fUST_20250605
["ID","MTS","AMOUNT","RATE_DAILY","PERIOD"]
[364356203,1749078644197,-864.22,0.00019246,3]
[364356206,1749078644207,-432.12,0.00019246,3]
[364356208,1749078644217,-1445.3,0.00019255,2]
[364356209,1749078644226,-570.55,0.00019255,2]
[364356210,1749078644235,-440.0,0.00019257,2]
[364356211,1749078644246,-440.0,0.00019257,2]
[364356212,1749078644255,-440.0,0.00019257,2]
[364356213,1749078644267,-440.0,0.00019257,2]
[364356214,1749078644277,-1510.19220189,0.00019348,2]
[364356216,1749078644287,-534.77,0.00019362,2]
[364356218,1749078644297,-1020.64,0.00019362,2]
[364356220,1749078644307,-1113.29,0.00019362,2]
[364356221,1749078644316,-440.0,0.00019362,2]
[364356223,1749078644326,-440.0,0.00019362,2]
[364356225,1749078644335,-440.0,0.00019362,2]
[364356227,1749078644348,-440.0,0.00019362,2]
[364356229,1749078644358,-440.0,0.00019362,2]
[364356231,1749078644369,-364.1,0.00019363,2]
[364356233,1749078644379,-1119.61,0.00019363,2]
[364356235,1749078644388,-444.15,0.00019363,2]
[364356237,1749078644398,-440.0,0.00019363,2]
[364356239,1749078644407,-440.0,0.00019363,2]
[364356241,1749078644417,-428.74,0.00019363,2]
[364356243,1749078644426,-505.41,0.00019363,2]
[364356245,1749078644436,-151.0,0.00019363,2]
[364356247,1749078644445,-523.14,0.00019363,2]
[364356248,1749078644455,-253.337168,0.00019363,2]
[364356249,1749078644465,-151.0,0.00019363,2]
[364356250,1749078644475,-500.0,0.00019529,2]
[364356251,1749078644485,-263.15913252,0.00019529,2]
[364356252,1749078644494,-1445.3,0.00019529,2]
[364356253,1749078644504,-570.55,0.00019529,2]
[364356254,1749078644514,-160.0,0.00019529,2]
[364356255,1749078644524,-440.0,0.00019531,2]
[364356256,1749078644534,-420.0,0.00019531,2]
[364356257,1749078644543,-1510.19220189,0.0001959,2]
[364356258,1749078644553,-534.77,0.00019636,2]
[364356259,1749078644562,-1020.64,0.00019636,2]
[364356260,1749078644571,-1113.29,0.00019636,2]
[364356261,1749078644582,-440.0,0.00019636,2]
[364356262,1749078644591,-440.0,0.00019636,2]
[364356263,1749078644601,-440.0,0.00019636,2]
[364356264,1749078644610,-440.0,0.00019636,2]
[364356265,1749078644622,-440.0,0.00019636,2]
[364356266,1749078644632,-1119.61,0.00019637,2]
[364356267,1749078644642,-444.15,0.00019637,2]
[364356268,1749078644651,-440.0,0.00019637,2]
[364356269,1749078644662,-440.0,0.00019637,2]
[364356270,1749078644671,-505.41,0.00019637,2]
[364356271,1749078644681,-523.14,0.00019637,2]
[364356272,1749078644691,-450.0,0.00019726,2]
[364356273,1749078644700,-542.54829244,0.00019726,2]
[364356274,1749078644710,-1445.3,0.00019803,2]
[364356275,1749078644719,-570.55,0.00019803,2]
[364356276,1749078644728,-440.0,0.00019805,2]
[364356277,1749078644738,-1510.19220189,0.00019831,2]
[364356278,1749078644747,-182.192,0.00019839,2]
[364356279,1749078644757,-534.77,0.0001991,2]
[364356280,1749078644766,-1020.64,0.0001991,2]
[364356281,1749078644775,-1113.29,0.0001991,2]
[364356282,1749078644785,-440.0,0.0001991,2]
[364356283,1749078644794,-440.0,0.0001991,2]
[364356284,1749078644804,-440.0,0.0001991,2]
[364356285,1749078644814,-440.0,0.0001991,2]
[364356286,1749078644824,-440.0,0.0001991,2]
[364356287,1749078644833,-1119.61,0.00019911,2]
[364356288,1749078644843,-444.15,0.00019911,2]
[364356289,1749078644852,-440.0,0.00019911,2]
[364356290,1749078644862,-505.41,0.00019911,2]
[364356291,1749078644874,-523.14,0.00019911,2]
[364356292,1749078644883,-212.90465545,0.00019966,2]
[364356293,1749078644893,-423.69433488,0.00019966,2]
[364356294,1749078644903,-842.5625,0.00019967,2]
[364356295,1749078644913,-160.0,0.00019967,2]
[364356296,1749078644923,-4312.376968,0.0002,2]
[364356297,1749078644933,-803.15,0.0002,2]
[364356298,1749078644943,-1600.0,0.00020068,2]
[364356299,1749078644952,-1510.19220189,0.00020072,2]
[364356300,1749078644962,-500.0,0.00020077,2]
[364356301,1749078644972,-151.0,0.00020077,2]
[364356302,1749078644982,-154.783073,0.00020077,2]
[364356303,1749078644990,-151.0,0.00020077,2]
[364356304,1749078645000,-151.0,0.00020077,2]
[364356305,1749078645010,-151.0,0.00020077,2]
[364356306,1749078645019,-1445.3,0.00020077,2]
[364356307,1749078645029,-350.530473,0.00020077,2]
[364356308,1749078645038,-350.530473,0.00020077,2]
[364356309,1749078645048,-570.55,0.00020077,2]
[364356310,1749078645057,-157.42187,0.00020077,2]
[364356311,1749078645067,-1071.024875,0.00020077,2]
[364356312,1749078645076,-1071.024875,0.00020077,2]
[364356313,1749078645086,-151.0,0.00020077,2]
[364356315,1749078645095,-151.0,0.00020077,2]
[364356317,1749078645105,-151.0,0.00020077,2]
[364356319,1749078645114,-440.0,0.00020079,2]
[364356321,1749078645125,-534.77,0.00020184,2]
[364356322,1749078645136,-1020.64,0.00020184,2]
[364356323,1749078645146,-1113.29,0.00020184,2]
[364356325,1749078645155,-298.32,0.00020184,2]
[364356327,1749078645165,-440.0,0.00020184,2]
[364356329,1749078645175,-440.0,0.00020184,2]
[364356331,1749078645185,-440.0,0.00020184,2]
[364356333,1749078645195,-440.0,0.00020184,2]
[364356335,1749078645204,-1119.61,0.00020185,2]
[364356337,1749078645214,-444.15,0.00020185,2]
[364356340,1749078645224,-440.0,0.00020185,2]
[364356342,1749078645234,-505.41,0.00020185,2]
[364356344,1749078645244,-523.14,0.00020185,2]
[364356346,1749078645254,-289.260945,0.00020187,2]
[364356348,1749078645266,-230.27803,0.00020305,2]
[364356350,1749078645277,-1510.19220189,0.00020314,3]
[364356352,1749078645286,-181.017071,0.00020314,2]
[364356354,1749078645296,-151.0,0.00020314,2]
[364356356,1749078645307,-1445.3,0.00020351,2]
[364356358,1749078645316,-570.55,0.00020351,2]
[364356360,1749078645326,-440.0,0.00020353,2]
[364356362,1749078645335,-534.77,0.00020458,2]
[364356364,1749078645346,-1020.64,0.00020458,2]
[364356366,1749078645356,-1113.29,0.00020458,2]
[364356368,1749078645368,-440.0,0.00020458,2]
[364356370,1749078645378,-440.0,0.00020458,2]
[364356372,1749078645387,-517.75,0.00020458,2]
[364356374,1749078645396,-440.0,0.00020458,2]
[364356376,1749078645406,-1119.61,0.00020459,2]
[364356378,1749078645415,-444.15,0.00020459,2]
[364356380,1749078645425,-440.0,0.00020459,2]
[364356382,1749078645435,-505.41,0.00020459,2]
[364356384,1749078645444,-523.14,0.00020459,2]
[364356386,1749078645454,-587.0,0.00020474,2]
[364356388,1749078645465,-500.0,0.00020547,2]
[364356390,1749078645475,-1510.19220189,0.00020555,3]
[364356392,1749078645485,-48317.41,0.000206,2]
[364356394,1749078645495,-151.0,0.000206,2]
[364356396,1749078645504,-151.0,0.000206,2]
[364356398,1749078645513,-915.72,0.000206,2]
[364356400,1749078645524,-151.0,0.000206,2]
[364356402,1749078645535,-171.07087,0.000206,2]
[364356404,1749078645544,-171.07087,0.000206,2]
[364356406,1749078645554,-500.0,0.00020624,2]
[364356408,1749078645563,-500.0,0.00020624,2]
[364356410,1749078645573,-500.0,0.00020624,2]
[364356412,1749078645582,-500.0,0.00020624,2]
[364356414,1749078645592,-513.5903136,0.00020624,2]
[364356415,1749078645601,-156.12092099,0.00020624,2]
[364356416,1749078645611,-500.0,0.00020624,2]
[364356417,1749078645623,-202.5,0.00020624,2]
[364356418,1749078645632,-500.0,0.00020624,2]
[364356419,1749078645642,-500.0,0.00020624,2]
[364356420,1749078645651,-500.0,0.00020624,2]
[364356421,1749078645661,-500.0,0.00020624,2]
[364356422,1749078645670,-500.0,0.00020624,2]
[364356423,1749078645680,-500.0,0.00020624,2]
[364356424,1749078645691,-508.57450474,0.00020624,2]
[364356425,1749078645701,-374.49646234,0.00020624,2]
[364356426,1749078645711,-465.0973115,0.00020624,2]
[364356427,1749078645722,-500.0,0.00020624,2]
[364356428,1749078645732,-418.0,0.00020624,2]
[364356429,1749078645742,-500.0,0.00020624,2]
[364356430,1749078645751,-500.0,0.00020624,2]
[364356431,1749078645761,-635.49627357,0.00020624,2]
[364356432,1749078645770,-500.0,0.00020624,2]
[364356433,1749078645781,-500.0,0.00020624,2]
[364356434,1749078645790,-1445.3,0.00020625,2]
[364356436,1749078645800,-570.55,0.00020625,2]
[364356437,1749078645809,-440.0,0.00020627,2]
[364356439,1749078645819,-534.77,0.00020732,2]
[364356441,1749078645829,-1020.64,0.00020732,2]
[364356443,1749078645838,-1113.29,0.00020732,2]
[364356445,1749078645848,-242.69,0.00020732,2]
[364356447,1749078645857,-440.0,0.00020732,2]
[364356449,1749078645867,-440.0,0.00020732,2]
[364356451,1749078645876,-151.0,0.00020733,2]
[364356453,1749078645885,-151.0,0.00020733,2]
[364356455,1749078645896,-173.039001,0.00020733,2]
[364356457,1749078645906,-1119.61,0.00020733,2]
[364356459,1749078645915,-444.15,0.00020733,2]
[364356461,1749078645924,-440.0,0.00020733,2]
[364356463,1749078645934,-451.241439,0.00020733,2]
[364356465,1749078645943,-451.241439,0.00020733,2]
[364356467,1749078645952,-151.0,0.00020733,2]
[364356469,1749078645961,-505.41,0.00020733,2]
[364356471,1749078645971,-523.14,0.00020733,2]
[364356473,1749078645981,-1510.19220189,0.00020797,4]
[364356475,1749078645990,-151.0,0.000208,3]
[364356477,1749078645999,-1445.3,0.00020899,2]
[364356479,1749078646009,-570.55,0.00020899,2]
[364356480,1749078646018,-440.0,0.00020901,2]
[364356483,1749078646028,-534.77,0.00021006,2]
[364356484,1749078646037,-1020.64,0.00021006,2]
[364356486,1749078646047,-1113.29,0.00021006,2]
[364356489,1749078646058,-440.0,0.00021006,2]
[364356490,1749078646067,-440.0,0.00021006,2]
[364356492,1749078646077,-1119.61,0.00021007,2]
[364356494,1749078646087,-444.15,0.00021007,2]
[364356496,1749078646096,-440.0,0.00021007,2]
[364356508,1749078646202,-505.41,0.00021007,2]
[364356510,1749078646212,-523.14,0.00021007,2]
[364356512,1749078646222,-1510.19220189,0.00021038,4]
[364356514,1749078646231,-500.0,0.00021095,3]
[364356516,1749078646240,-423.13014727,0.00021163,2]
[364356518,1749078646250,-1600.0,0.00021164,2]
[364356520,1749078646260,-1445.3,0.00021173,2]
[364356522,1749078646274,-570.55,0.00021173,2]
[364356524,1749078646283,-440.0,0.00021175,2]
[364356526,1749078646293,-1510.19220189,0.00021279,5]
[364356528,1749078646304,-534.77,0.0002128,2]
[364356530,1749078646315,-1020.64,0.0002128,2]
[364356532,1749078646325,-1113.29,0.0002128,2]
[364356534,1749078646336,-440.0,0.0002128,2]
[364356536,1749078646346,-573.41,0.0002128,2]
[364356538,1749078646357,-1119.61,0.00021281,2]
[364356540,1749078646369,-444.15,0.00021281,2]
[364356542,1749078646381,-440.0,0.00021281,2]
[364356544,1749078646391,-505.41,0.00021281,2]
[364356546,1749078646401,-523.14,0.00021281,2]
[364356548,1749078646411,-1445.3,0.00021447,2]
[364356550,1749078646421,-570.55,0.00021447,2]
[364356552,1749078646431,-440.0,0.00021449,2]
[364356554,1749078646441,-250.0,0.00021458,2]
[364356555,1749078646452,-1510.19220189,0.00021521,5]
[364356558,1749078646463,-534.77,0.00021554,2]
[364356559,1749078646473,-1020.64,0.00021554,2]
[364356561,1749078646483,-1113.29,0.00021554,2]
[364356563,1749078646494,-440.0,0.00021554,2]
[364356565,1749078646504,-1119.61,0.00021555,2]
[364356567,1749078646514,-444.15,0.00021555,2]
[364356569,1749078646524,-440.0,0.00021555,2]
[364356571,1749078646534,-505.41,0.00021555,2]
[364356573,1749078646544,-523.14,0.00021555,2]
[364356575,1749078646555,-500.0,0.00021643,4]
[364356577,1749078646565,-1445.3,0.00021721,2]
[364356579,1749078646575,-570.55,0.00021721,2]
[364356581,1749078646585,-440.0,0.00021723,2]
[364356583,1749078646596,-151.0,0.00021762,2]
[364356585,1749078646607,-151.0,0.00021762,2]
[364356587,1749078646619,-1510.19220189,0.00021762,5]
[364356589,1749078646630,-230.27803,0.00021785,2]
[364356591,1749078646640,-3724.32592862,0.000218,2]
[364356593,1749078646650,-48317.41,0.000218,2]
[364356595,1749078646659,-1000.0,0.000218,2]
[364356597,1749078646669,-915.72,0.000218,2]
[364356599,1749078646679,-534.77,0.00021828,2]
[364356601,1749078646689,-1020.64,0.00021828,2]
[364356603,1749078646699,-1113.29,0.00021828,2]
[364356605,1749078646709,-199.351973,0.00021828,2]
[364356607,1749078646719,-151.0,0.00021828,2]
[364356609,1749078646729,-440.0,0.00021828,2]
[364356611,1749078646738,-1119.61,0.00021829,2]
[364356613,1749078646748,-444.15,0.00021829,2]
[364356615,1749078646757,-440.0,0.00021829,2]
[364356616,1749078646767,-505.41,0.00021829,2]
[364356618,1749078646777,-171.07087,0.00021829,2]
[364356620,1749078646786,-523.14,0.00021829,2]
[364356622,1749078646796,-171.07087,0.00021829,2]
[364356625,1749078646806,-500.0,0.00021833,2]
[364356626,1749078646815,-500.0,0.00021833,2]
[364356628,1749078646825,-500.0,0.00021833,2]
[364356630,1749078646835,-300.0,0.00021833,2]
[364356633,1749078646844,-180.74437868,0.00021833,2]
[364356637,1749078646861,-319.25562132,0.00021833,2]
[364356639,1749078646872,-500.0,0.00021833,2]
[364356641,1749078646882,-565.46220978,0.00021833,2]
[364356643,1749078646892,-200.0,0.00021917,2]
[364356645,1749078646902,-500.0,0.00021917,2]
[364356647,1749078646912,-500.0,0.00021917,2]
[364356649,1749078646922,-500.0,0.00021917,2]
[364356651,1749078646932,-500.0,0.00021917,2]
[364356653,1749078646942,-500.0,0.00021917,2]
[364356655,1749078646951,-500.0,0.00021917,2]
[364356657,1749078646961,-500.0,0.00021917,2]
[364356659,1749078646970,-500.0,0.00021917,2]
[364356661,1749078646980,-500.0,0.00021917,2]
[364356663,1749078646989,-500.0,0.00021917,2]
[364356665,1749078646999,-500.0,0.00021917,2]
[364356667,1749078647009,-500.0,0.00021917,2]
[364356669,1749078647018,-500.0,0.00021917,2]
[364356671,1749078647027,-500.0,0.00021917,2]
[364356673,1749078647036,-500.0,0.00021917,2]
[364356675,1749078647046,-500.0,0.00021917,2]
[364356677,1749078647055,-500.0,0.00021917,2]
[364356679,1749078647065,-581.58,0.00021917,2]
[364356681,1749078647074,-151.0,0.00021917,2]
[364356683,1749078647083,-500.0,0.00021917,2]
[364356685,1749078647093,-500.0,0.00021917,2]
[364356687,1749078647103,-500.0,0.00021917,2]
[364356688,1749078647113,-500.0,0.00021917,2]
[364356690,1749078647125,-500.0,0.00021917,2]
[364356692,1749078647134,-500.0,0.00021917,2]
[364356694,1749078647144,-500.0,0.00021917,2]
[364356696,1749078647153,-500.0,0.00021917,2]
[364356699,1749078647163,-500.0,0.00021917,2]
[364356701,1749078647173,-365.71033948,0.00021917,2]
[364356703,1749078647183,-151.0,0.00021918,2]
[364356705,1749078647193,-237.13056107,0.00021918,2]
[364356706,1749078647202,-1445.3,0.00021995,2]
[364356708,1749078647212,-570.55,0.00021995,2]
[364356710,1749078647221,-440.0,0.00021997,2]
[364356713,1749078647231,-505.38,0.00022,15]
[364356714,1749078647240,-3000.0,0.00022,2]
[364356717,1749078647251,-97.95126835,0.00022,2]
[364356719,1749078647263,-53.04873165,0.00022,2]
[364356721,1749078647277,-1510.19220189,0.00022003,6]
[364356723,1749078647287,-1334.39334759,0.0002201,2]
[364356725,1749078647299,-265.27490865,0.0002201,2]
[364356741,1749078647453,-172.30398629,0.0001717,2]
[364356744,1749078647464,-440.0,0.00017171,2]
[364356745,1749078647474,-440.0,0.00017171,2]
[364356748,1749078647484,-440.0,0.00017445,2]
[364356749,1749078647493,-440.0,0.00017445,2]
[364356751,1749078647503,-381.50798249,0.00017719,2]
[364356753,1749078647512,-382.74734466,0.00017719,2]
[364356755,1749078647522,-1400.33174376,0.0002201,2]
[364356757,1749078647532,-3000.0,0.0002202,2]
[364356759,1749078647542,-3000.0,0.0002203,2]
[364356762,1749078647552,-3000.0,0.0002204,2]
[364356763,1749078647562,-151.0,0.0002204,7]
[364356765,1749078647572,-151.0,0.0002204,7]
[364356767,1749078647582,-167.87678,0.0002204,7]
[364356769,1749078647592,-151.0,0.0002204,7]
[364356771,1749078647601,-350.530473,0.0002204,7]
[364356773,1749078647610,-350.530473,0.0002204,7]
[364356775,1749078647621,-1071.024875,0.0002204,7]
[364356778,1749078647631,-1071.024875,0.0002204,7]
[364356779,1749078647640,-151.000001,0.0002204,7]
[364356781,1749078647649,-151.0,0.0002204,7]
[364356783,1749078647662,-151.0,0.0002204,7]
[364356785,1749078647674,-3000.0,0.0002205,2]
[364356787,1749078647683,-3000.0,0.0002206,2]
[364356789,1749078647692,-151.808954,0.0002206,7]
[364356791,1749078647702,-3000.0,0.0002207,2]
[364356793,1749078647711,-151.0,0.0002207,7]
[364356795,1749078647721,-151.0,0.0002207,7]
[364356797,1749078647730,-151.0,0.0002207,7]
[364356799,1749078647740,-151.0,0.0002207,7]
[364356801,1749078647749,-164.677645,0.0002207,7]
[364356803,1749078647759,-164.677645,0.0002207,7]
[364356805,1749078647768,-3000.0,0.0002208,2]
[364356807,1749078647777,-3000.0,0.0002209,2]
[364356809,1749078647787,-3000.0,0.000221,2]
[364356811,1749078647796,-1020.64,0.00022102,2]
[364356813,1749078647806,-1113.29,0.00022102,2]
[364356815,1749078647815,-440.0,0.00022102,2]
[364356817,1749078647824,-1119.61,0.00022103,2]
[364356819,1749078647833,-444.15,0.00022103,2]
[364356821,1749078647843,-440.0,0.00022103,2]
[364356823,1749078647852,-505.41,0.00022103,2]
[364356825,1749078647862,-523.14,0.00022103,2]
[364356827,1749078647872,-3000.0,0.0002211,2]
[364356829,1749078647882,-3000.0,0.0002212,2]
[364356831,1749078647891,-3000.0,0.0002213,2]
[364356833,1749078647900,-151.0,0.0002213,7]
[364356835,1749078647910,-151.0,0.0002213,7]
[364356837,1749078647919,-451.241439,0.0002213,7]
[364356839,1749078647928,-451.241439,0.0002213,7]
[364356841,1749078647937,-151.0,0.0002213,7]
[364356843,1749078647946,-3000.0,0.0002214,2]
[364356845,1749078647956,-3000.0,0.0002215,2]
[364356847,1749078647966,-3000.0,0.0002216,2]
[364356849,1749078647975,-224.53576733,0.0002216,2]
[364356851,1749078647984,-3000.0,0.0002217,2]
[364356853,1749078647994,-3000.0,0.0002218,2]
[364356855,1749078648003,-3000.0,0.0002219,2]
[364356857,1749078648012,-151.0,0.0002219,7]
[364356859,1749078648022,-151.0,0.0002219,7]
[364356861,1749078648031,-151.0,0.0002219,7]
[364356863,1749078648040,-1607.325022,0.0002219,2]
[364356865,1749078648049,-151.0,0.0002219,7]
[364356867,1749078648059,-151.0,0.0002219,7]
[364356869,1749078648069,-2380.45724693,0.00022198,2]
[364356871,1749078648079,-3000.0,0.000222,2]
[364356873,1749078648088,-151.0,0.000222,8]
[364356875,1749078648098,-3000.0,0.0002221,2]
[364356877,1749078648107,-3000.0,0.0002222,2]
[364356879,1749078648118,-3000.0,0.0002223,2]
[364356881,1749078648128,-151.0,0.0002223,7]
[364356883,1749078648137,-3000.0,0.0002224,2]
[364356885,1749078648146,-151.0,0.0002224,7]
[364356887,1749078648155,-171.07087,0.0002224,7]
[364356889,1749078648165,-171.07087,0.0002224,7]
[364356891,1749078648174,-1510.19220189,0.00022245,6]
[364356893,1749078648184,-3000.0,0.0002225,2]
[364356895,1749078648193,-3000.0,0.0002226,2]
[364356897,1749078648203,-1600.0,0.0002226,2]
[364356898,1749078648213,-1445.3,0.00022269,2]
[364356899,1749078648223,-570.55,0.00022269,2]
[364356900,1749078648232,-3000.0,0.0002227,2]
[364356901,1749078648241,-224.71,0.00022271,2]
[364356902,1749078648251,-3000.0,0.0002228,2]
[364356903,1749078648261,-3000.0,0.0002229,2]
[364356904,1749078648278,-3000.0,0.000223,2]
[364356906,1749078648287,-3000.0,0.0002231,2]
[364356908,1749078648297,-3000.0,0.0002232,2]
[364356910,1749078648307,-3000.0,0.0002233,2]
[364356912,1749078648316,-3000.0,0.0002234,2]
[364356914,1749078648326,-3000.0,0.0002235,2]
[364356916,1749078648336,-823.0,0.00022358,2]
[364356918,1749078648346,-3000.0,0.0002236,2]
[364356920,1749078648356,-151.0,0.0002236,7]
[364356922,1749078648368,-151.0,0.0002236,7]
[364356924,1749078648377,-151.0,0.0002236,7]
[364356926,1749078648387,-350.530473,0.0002236,7]
[364356928,1749078648396,-350.530473,0.0002236,7]
[364356930,1749078648406,-1071.024875,0.0002236,7]
[364356932,1749078648416,-1071.024875,0.0002236,7]
[364356934,1749078648425,-151.0,0.0002236,7]
[364356936,1749078648435,-151.0,0.0002236,7]
[364356938,1749078648445,-3000.0,0.0002237,2]
[364356940,1749078648454,-151.0,0.0002237,7]
[364356942,1749078648464,-151.0,0.0002237,7]
[364356944,1749078648474,-1020.64,0.00022376,2]
[364356946,1749078648484,-1113.29,0.00022376,2]
[364356948,1749078648494,-269.36,0.00022376,2]
[364356950,1749078648505,-1119.61,0.00022377,2]
[364356953,1749078648516,-444.15,0.00022377,2]
[364356955,1749078648526,-440.0,0.00022377,2]
[364356956,1749078648536,-505.41,0.00022377,2]
[364356958,1749078648546,-523.14,0.00022377,2]
[364356960,1749078648556,-3000.0,0.0002238,2]
[364356962,1749078648566,-1000.0,0.00022381,2]
[364356965,1749078648576,-340.67825308,0.00022381,2]
[364356966,1749078648586,-1000.0,0.00022381,2]
[364356968,1749078648596,-3000.0,0.0002239,2]
[364356971,1749078648606,-3000.0,0.000224,2]
[364356973,1749078648618,-3000.0,0.0002241,2]
[364356974,1749078648627,-151.0,0.0002241,7]
[364356986,1749078648731,-151.0,0.0002241,7]
[364356988,1749078648742,-151.0,0.0002241,7]
[364356989,1749078648752,-151.0,0.0002241,7]
[364356991,1749078648763,-164.677645,0.0002241,7]
[364356993,1749078648772,-164.677645,0.0002241,7]
[364356995,1749078648782,-3000.0,0.0002242,2]
[364356997,1749078648791,-3000.0,0.0002243,2]
[364356999,1749078648801,-4265.700119,0.0002244,2]
[364357001,1749078648811,-151.0,0.0002244,7]
[364357004,1749078648821,-151.0,0.0002244,7]
[364357005,1749078648831,-451.241439,0.0002244,7]
[364357007,1749078648841,-451.241439,0.0002244,7]
[364357010,1749078648851,-151.0,0.0002244,7]
[364357012,1749078648862,-500.0,0.00022465,2]
[364357014,1749078648872,-1510.19220189,0.00022486,7]
[364357015,1749078648881,-1445.3,0.00022543,2]
[364357017,1749078648891,-570.55,0.00022543,2]
[364357019,1749078648900,-353.057519,0.00022548,2]
[364357021,1749078648910,-195.2425496,0.00022548,2]
[364357024,1749078648920,-500.0,0.0002256,2]
[364357026,1749078648930,-500.0,0.0002256,2]
[364357028,1749078648939,-500.0,0.0002256,2]
[364357029,1749078648949,-500.0,0.0002256,2]
[364357031,1749078648959,-500.0,0.0002256,2]
[364357034,1749078648969,-500.0,0.0002256,2]
[364357035,1749078648979,-500.0,0.0002256,2]
[364357038,1749078648989,-500.0,0.0002256,2]
[364357039,1749078648999,-5000.0,0.0002256,2]
[364357041,1749078649009,-500.0,0.0002256,2]
[364357044,1749078649019,-500.0,0.0002256,2]
[364357046,1749078649028,-500.0,0.0002256,2]
[364357048,1749078649038,-207.4,0.0002256,2]
[364357050,1749078649048,-500.0,0.0002256,2]
[364357052,1749078649058,-500.0,0.0002256,2]
[364357054,1749078649067,-500.0,0.0002256,2]
[364357056,1749078649077,-500.0,0.0002256,2]
[364357058,1749078649086,-500.0,0.0002256,2]
[364357060,1749078649097,-500.0,0.0002256,2]
[364357062,1749078649106,-500.0,0.0002256,2]
[364357064,1749078649117,-500.0,0.0002256,2]
[364357066,1749078649126,-500.0,0.0002256,2]
[364357068,1749078649137,-500.0,0.0002256,2]
[364357070,1749078649147,-500.0,0.0002256,2]
[364357072,1749078649157,-500.0,0.0002256,2]
[364357074,1749078649167,-500.0,0.0002256,2]
[364357076,1749078649176,-500.0,0.0002256,2]
[364357078,1749078649186,-500.0,0.0002256,2]
[364357080,1749078649195,-500.0,0.0002256,2]
[364357082,1749078649205,-153.0,0.00022575,2]
[364357084,1749078649214,-151.0,0.000226,8]
[364357086,1749078649223,-1020.64,0.0002265,2]
[364357088,1749078649233,-1113.29,0.0002265,2]
[364357089,1749078649242,-1119.61,0.00022651,2]
[364357092,1749078649253,-444.15,0.00022651,2]
[364357094,1749078649262,-440.0,0.00022651,2]
[364357096,1749078649275,-505.41,0.00022651,2]
[364357098,1749078649285,-523.14,0.00022651,2]
[364357100,1749078649295,-2000.0,0.00022684,2]
[364357102,1749078649304,-2000.0,0.00022684,2]
[364357104,1749078649315,-222.03353951,0.00022684,2]
[364357106,1749078649325,-151.0,0.00022708,7]
[364357108,1749078649336,-171.07087,0.00022708,7]
[364357110,1749078649346,-171.07087,0.00022708,7]
[364357112,1749078649357,-1510.19220189,0.00022728,7]
[364357114,1749078649367,-151.0,0.00022728,7]
[364357116,1749078649377,-151.0,0.00022758,7]
[364357118,1749078649387,-151.0,0.00022758,7]
[364357120,1749078649397,-293.220748,0.00022758,7]
[364357122,1749078649408,-1607.325022,0.00022758,2]
[364357124,1749078649417,-151.0,0.00022758,7]
[364357125,1749078649426,-151.0,0.00022758,7]
[364357128,1749078649437,-768.84,0.000228,7]
[364357130,1749078649447,-1445.3,0.00022817,2]
[364357132,1749078649458,-570.55,0.00022817,2]
[364357134,1749078649468,-48317.41,0.000229,2]